{"text_format":"3","workbook":"xlsx","n_sheets":1,"sheets":["Trouwbudget"],"not_rendered":{"images":1},"read":"whole","date_system":"1900"}

{"sheet":"Trouwbudget","index":0,"n_rows":109,"n_cols":5,"rows_kept":109,"merged":[[2,1,3,1],[5,1,6,1],[14,1,15,1],[24,1,25,1],[33,1,34,1],[43,1,44,1],[50,1,51,1],[60,1,61,1],[73,1,74,1],[87,1,88,1],[95,1,96,1]]}
[{"$nulls":4}," "]
[]
[null,"Totale onkosten ","Geschat","Werkelijk"]
[null,null,{"$f":"C7+C16+C26+C35+C45+C52+C62+C75+C89+C97","v":{"v":350,"d":"€ 350"}},{"$f":"D7+D16+D26+D35+D45+D52+D62+D75+D89+D97","v":{"v":320,"d":"€ 320"}}]
[]
[null,"Kleding","Geschat","Werkelijk"]
[null,null,{"$f":"SUM(Tabel_Kleding[[#All],[Geschat]])","v":{"v":350,"d":"€ 350"}},{"$f":"SUM(Tabel_Kleding[[#All],[Werkelijk]])","v":{"v":320,"d":"€ 320"}}]
[null,"Kolom1","Geschat","Werkelijk"]
[null,"Trouwringen",{"v":350,"d":"€ 350.00"},{"v":320,"d":"€ 320.00"}]
[null,"Bruidskleding"]
[null,"Accessoires"]
[null,"Schoenen"]
[null,"Overige - typ de details"]
[]
[null,"Versieringen","Geschat","Werkelijk"]
[null,null,{"$f":"SUM(Tabel_Versiering[[#All],[Geschat]])","v":{"v":0,"d":"€ 0"}},{"$f":"SUM(Tabel_Versiering[[#All],[Werkelijk]])","v":{"v":0,"d":"€ 0"}}]
[null,"Kolom1","Geschat","Werkelijk"]
[null,"Linten voor kerkbanken/ander zitmeubilair"]
[null,"Tafelversieringen (exclusief bloemen)"]
[null,"Kaarsen"]
[null,"Verlichting"]
[null,"Ballonnen"]
[null,"Overige - typ de details"]
[]
[null,"Cadeaus","Geschat","Werkelijk"]
[null,null,{"$f":"SUM(Tabel_Cadeaus[[#All],[Geschat]])","v":{"v":0,"d":"€ 0"}},{"$f":"SUM(Tabel_Cadeaus[[#All],[Werkelijk]])","v":{"v":0,"d":"€ 0"}}]
[null,"Kolom1","Geschat","Werkelijk"]
[null,"Gevolg"]
[null,"Bruidspaar"]
[null,"Ouders"]
[null,"Sprekers/overige deelnemers"]
[null,"Overige - typ de details"]
[]
[null,"Bloemen","Geschat","Werkelijk"]
[null,null,{"$f":"SUM(Tabel_Bloemen[[#All],[Geschat]])","v":{"v":0,"d":"€ 0"}},{"$f":"SUM(Tabel_Bloemen[[#All],[Werkelijk]])","v":{"v":0,"d":"€ 0"}}]
[null,"Kolom1","Geschat","Werkelijk"]
[null,"Boeketten"]
[null,"Boutonnières"]
[null,"Corsages"]
[null,"Ceremonie"]
[null,"Receptie"]
[null,"Overige - typ de details"]
[]
[null,"Muziek","Geschat","Werkelijk"]
[null,null,{"$f":"SUM(Tabel_Muziek[[#All],[Geschat]])","v":{"v":0,"d":"€ 0"}},{"$f":"SUM(Tabel_Muziek[[#All],[Werkelijk]])","v":{"v":0,"d":"€ 0"}}]
[null,"Kolom1","Geschat","Werkelijk"]
[null,"Muzikanten voor ceremonie"]
[null,"Band/DJ voor receptie"]
[null,"Overige - typ de details"]
[]
[null,"Fotografie","Geschat","Werkelijk"]
[null,null,{"$f":"SUM(Tabel_Fotografie[[#All],[Geschat]])","v":{"v":0,"d":"€ 0"}},{"$f":"SUM(Tabel_Fotografie[[#All],[Werkelijk]])","v":{"v":0,"d":"€ 0"}}]
[null,"Kolom1","Geschat","Werkelijk"]
[null,"Formele foto's"]
[null,"Spontane foto's"]
[null,"Extra afdrukken"]
[null,"Fotoalbums"]
[null,"Video-opnamen"]
[null,"Overige - typ de details"]
[]
[null,"Receptie (exclusief muziek en versieringen)","Geschat","Werkelijk"]
[null,null,{"$f":"SUM(Tabel_Receptie[[#All],[Geschat]])","v":{"v":0,"d":"€ 0"}},{"$f":"SUM(Tabel_Receptie[[#All],[Werkelijk]])","v":{"v":0,"d":"€ 0"}}]
[null,"Kolom1","Geschat","Werkelijk"]
[null,"Kosten kamer/zaal"]
[null,"Tafels en stoelen"]
[null,"Eten"]
[null,"Drinken"]
[null,"Linnengoed"]
[null,"Taart"]
[null,"Aandenkens"]
[null,"Personeel en fooien"]
[null,"Overige - typ de details"]
[]
[null,"Briefpapier/drukwerk","Geschat","Werkelijk"]
[null,null,{"$f":"SUM(Tabel_DrukwerkBriefpapier[[#All],[Geschat]])","v":{"v":0,"d":"€ 0"}},{"$f":"SUM(Tabel_DrukwerkBriefpapier[[#All],[Werkelijk]])","v":{"v":0,"d":"€ 0"}}]
[null,"Kolom1","Geschat","Werkelijk"]
[null,"Uitnodigingen"]
[null,"Aankondigingen"]
[null,"Bedankkaarten"]
[null,"Persoonlijk briefpapier"]
[null,"Gastenboek"]
[null,"Programma's"]
[null,"Receptieservetten"]
[null,"Lucifersboekjes"]
[null,"Kalligrafie"]
[null,"Overige - typ de details"]
[]
[null,"Vervoer","Geschat","Werkelijk"]
[null,null,{"$f":"SUM(Tabel_Vervoer[[#All],[Geschat]])","v":{"v":0,"d":"€ 0"}},{"$f":"SUM(Tabel_Vervoer[[#All],[Werkelijk]])","v":{"v":0,"d":"€ 0"}}]
[null,"Kolom1","Geschat","Werkelijk"]
[null,"Limousines/trolleybussen"]
[null,"Parkeren"]
[null,"Taxi's"]
[null,"Overige - typ de details"]
[]
[null,"Overige uitgaven","Geschat","Werkelijk"]
[null,null,{"$f":"SUM(Tabel_OverigeUitgaven[[#All],[Geschat]])","v":{"v":0,"d":"€ 0"}},{"$f":"SUM(Tabel_OverigeUitgaven[[#All],[Werkelijk]])","v":{"v":0,"d":"€ 0"}}]
[null,"Kolom1","Geschat","Werkelijk"]
[null,"Dienstleider"]
[null,"Kosten kerk/ceremonielocatie"]
[null,"Bruiloftscoördinator"]
[null,"Repetitiediner"]
[null,"Verlovingsfeest"]
[null,"Showers"]
[null,"Schoonheidssalon"]
[null,"Vrijgezellenfeesten"]
[null,"Brunch"]
[null,"Hotelkamers"]
[null,"Overige - typ de details"]